bitfinex-derivatives/quotes_ETHF0:USTF0_20240928
["timestamp","ask_amount","ask_price","bid_price","bid_amount"]
[1727483239056,0.75097,2694.9,2694.8,0.9729273]
[1727483239768,0.37099,2694.8,2694.7,0.97278155]
[1727483239956,0.75098,2694.9,2694.7,2.17433145]
[1727483240156,0.75098,2694.9,2694.8,0.97278155]
[1727483240759,0.75098,2694.9,2694.7,0.97278155]
[1727483242660,1.70099,2694.8,2694.7,0.97278155]
[1727483243062,0.371,2694.7,2694.6,0.97278155]
[1727483243262,0.371,2694.7,2694.6,2.17434325]
[1727483244257,0.371,2694.7,2694.6,1.2015617]
[1727483244666,0.371,2694.7,2694.6,2.17439499]
[1727483244867,0.371,2694.7,2694.6,0.97283329]
[1727483245055,0.37101,2694.6,2694.5,1.74753329]
[1727483245255,0.37101,2694.6,2694.5,2.94918076]
[1727483245461,0.37101,2694.6,2694.5,1.97634747]
[1727483245668,0.37101,2694.6,2694.5,1.74754033]
[1727483247966,0.37101,2694.6,2694.5,0.7747]
[1727483248162,0.37101,2694.6,2694.5,1.74754033]
[1727483250480,0.37101,2694.6,2694.5,0.7747]
[1727483251275,0.37101,2694.6,2694.5,1.74754033]
[1727483251870,0.37101,2694.6,2694.5,0.7747]
[1727483253792,0.77571,2694.6,2694.5,0.7747]
[1727483254591,3.98351,2694.6,2694.5,0.7747]
[1727483255291,5.43764318,2694.6,2694.5,0.7747]
[1727483255786,3.98351,2694.6,2694.5,0.7747]
[1727483257591,5.31351,2694.6,2694.5,0.7747]
[1727483258978,6.76764318,2694.6,2694.5,0.7747]
[1727483259183,5.31351,2694.6,2694.5,0.7747]
[1727483261295,6.76764318,2694.6,2694.5,0.7747]
[1727483262397,5.31351,2694.6,2694.5,0.7747]
[1727483263894,6.76764318,2694.6,2694.5,0.7747]
[1727483264200,5.31351,2694.6,2694.5,0.7747]
[1727483265605,0.37103,2694.5,2694.4,0.3907]
[1727483265802,1.70103,2694.5,2694.4,0.3907]
[1727483265998,5.41223,2694.5,2694.4,0.3907]
[1727483266707,1.70103,2694.5,2694.4,0.3907]
[1727483266904,5.41223,2694.5,2694.4,0.3907]
[1727483267093,6.86636318,2694.5,2694.4,0.3907]
[1727483267403,0.37105,2694.4,2694.2,0.7608]
[1727483268105,0.37106,2694.3,2694.2,0.7608]
[1727483270698,0.39836,2694.3,2694.2,0.7608]
[1727483282819,1.72836,2694.3,2694.2,0.7608]
[1727483284115,2.11066,2694.3,2694.2,0.7608]
[1727483287923,3.56479318,2694.3,2694.2,0.7608]
[1727483289625,1.48143318,2694.3,2694.2,1.73364033]
[1727483289831,0.0273,2694.3,2694.2,1.73364033]
[1727483290437,0.87153318,2694.5,2694.2,7.26069893]
[1727483290731,3.2078,2694.7,2694.5,0.37103]
[1727483291037,3.2078,2694.7,2694.6,3.42348939]
[1727483291329,4.9088,2694.7,2694.6,0.7615]
[1727483291530,4.9088,2694.7,2694.6,1.73465253]
[1727483291921,4.9088,2694.7,2694.6,0.7615]
[1727483293531,6.84764424,2694.7,2694.6,0.7615]
[1727483294626,4.9088,2694.7,2694.6,0.7615]
[1727483295325,0.37101,2694.6,2694.5,0.97315253]
[1727483295525,0.37103,2694.5,2694.4,0.97315253]
[1727483295731,1.70103,2694.5,2694.4,0.97315253]
[1727483295933,1.70103,2694.5,2694.2,0.97315253]
[1727483295934,7.75404424,2694.5,2694.2,0.97315253]
[1727483296134,7.75404424,2694.5,2694.2,0.3679]
[1727483296135,3.2078,2694.3,2694.2,0.3679]
[1727483296433,3.57886,2694.3,2694.2,0.3679]
[1727483296625,3.96696,2694.3,2694.2,0.3679]
[1727483299035,5.9094767,2694.3,2694.2,0.3679]
[1727483299233,3.96696,2694.3,2694.2,0.3679]
[1727483299530,7.67896,2694.3,2694.2,0.3679]
[1727483299930,3.96696,2694.3,2694.2,0.3679]
[1727483300529,7.67896,2694.3,2694.2,0.3679]
[1727483300729,5.9094767,2694.3,2694.2,0.3679]
[1727483301328,9.6214767,2694.3,2694.2,0.3679]
[1727483301537,7.67896,2694.3,2694.2,0.3679]
[1727483301832,3.96696,2694.3,2694.2,0.3679]
[1727483302032,7.67896,2694.3,2694.2,0.3679]
[1727483302426,0.37107,2694.2,2694.1,0.385]
[1727483302627,1.70107,2694.2,2694.1,0.766]
[1727483309042,4.90887,2694.2,2694.1,0.766]
[1727483316643,8.62087,2694.2,2694.1,0.766]
[1727483317042,10.5633867,2694.2,2694.1,0.766]
[1727483317739,8.62087,2694.2,2694.1,0.766]
[1727483317935,4.90887,2694.2,2694.1,0.766]
[1727483318338,8.62087,2694.2,2694.1,0.766]
[1727483318541,4.90887,2694.2,2694.1,0.766]
[1727483319047,8.62087,2694.2,2694.1,0.766]
[1727483319242,4.90887,2694.2,2694.1,0.766]
[1727483321043,0.37111,2693.9,2693.8,1.37035253]
[1727483321246,4.90891,2693.9,2693.8,0.3972]
[1727483322343,4.90891,2693.9,2693.8,1.74235253]
[1727483323441,4.90891,2693.9,2693.8,0.7692]
[1727483323844,4.90891,2693.9,2693.8,1.74235253]
[1727483324047,4.90891,2693.9,2693.8,0.7692]
[1727483324947,4.90891,2693.9,2693.8,1.74235253]
[1727483325247,4.90891,2693.9,2693.8,0.7692]
[1727483325648,4.90891,2693.9,2693.8,1.74235253]
[1727483326445,3.2078,2693.9,2693.8,0.7692]
[1727483326649,3.2339,2694.2,2694.1,0.37108]
[1727483326854,3.2339,2694.2,2694.1,1.70108]
[1727483327050,3.2339,2694.2,2694.1,2.67374401]
[1727483327251,3.2339,2694.2,2694.1,3.04364401]
[1727483328158,3.2339,2694.2,2694.1,2.67256401]
[1727483328448,3.2339,2694.2,2694.1,1.34256401]
[1727483334057,3.2339,2694.2,2694.1,1.71364401]
[1727483334460,3.2339,2694.2,2694.1,1.34256401]
[1727483337161,3.2339,2694.2,2694.1,2.54667042]
[1727483337761,3.2339,2694.2,2694.1,1.34256401]
[1727483338667,3.2339,2694.2,2694.1,1.71364401]
[1727483339055,3.2339,2694.2,2694.1,2.54703527]
[1727483340160,3.2339,2694.2,2694.1,1.57437126]
[1727483340461,3.2339,2694.2,2694.1,3.03418213]
[1727483341063,3.2339,2694.2,2694.1,1.57437126]
[1727483341264,0.0261,2694.2,2694.1,3.03418213]
[1727483342462,1.72717,2694.2,2694.1,2.66461945]
[1727483342663,2.10997,2694.2,2694.1,0.97349632]
[1727483342959,0.37108,2694.1,2694.0,0.4016]
[1727483343165,3.57888,2694.1,2694.0,1.60645049]
[1727483344258,3.57888,2694.1,2694.0,2.57998022]
[1727483344453,3.57888,2694.1,2694.0,1.60645049]
[1727483344760,3.57888,2694.1,2694.0,2.58001226]
[1727483345465,3.57888,2694.1,2694.0,3.06626136]
[1727483346462,3.57888,2694.1,2694.0,2.58000451]
[1727483346863,3.57888,2694.1,2694.0,1.60645049]
[1727483347066,0.37108,2694.1,2694.0,1.60645049]
[1727483347369,0.37108,2694.1,2694.0,3.06624184]
[1727483351570,3.17017922,2694.2,2694.0,3.06624184]
[1727483351571,3.54125922,2694.2,2694.0,3.06624184]
[1727483351761,3.54125922,2694.2,2694.1,0.97352444]
[1727483352669,3.54125922,2694.2,2694.1,2.17834003]
[1727483353669,2.08388,2694.2,2694.1,2.17834003]
[1727483353865,3.54125922,2694.2,2694.1,2.17834003]
[1727483354172,2.08388,2694.2,2694.1,2.17834003]
[1727483354373,3.54125922,2694.2,2694.1,2.17834003]
[1727483354668,0.3711,2694.0,2693.9,0.97352444]
[1727483354863,0.37111,2693.9,2693.8,0.97352444]
[1727483355064,4.30924479,2693.9,2693.8,2.17843351]
[1727483355375,4.30924479,2693.9,2693.8,0.97352444]
[1727483358467,2.85201,2693.9,2693.8,0.97352444]
[1727483358765,4.30924479,2693.9,2693.8,0.97352444]
[1727483360364,2.85201,2693.9,2693.8,0.97352444]
[1727483361069,2.4809,2693.9,2693.8,0.97352444]
[1727483361265,2.0976,2693.9,2693.8,0.97352444]
[1727483361471,3.55483479,2693.9,2693.7,1.37852444]
[1727483361774,2.0976,2693.9,2693.8,0.97352444]
[1727483362277,0.7676,2693.9,2693.8,0.97352444]
[1727483362474,4.66503479,2694.0,2693.8,1.73802444]
[1727483364079,3.2078,2694.0,2693.8,1.73802444]
[1727483364276,3.2078,2694.0,2693.8,2.10914444]
[1727483364473,3.2078,2694.0,2693.8,1.73802444]
[1727483365279,3.15831479,2694.1,2693.8,1.73802444]
[1727483365581,1.45723479,2694.2,2694.1,0.37108]
[1727483365771,3.2078,2694.3,2694.1,0.37108]
[1727483365772,3.2078,2694.3,2694.1,1.20435739]
[1727483366076,3.2078,2694.3,2694.2,1.36671103]
[1727483366281,3.2078,2694.3,2694.2,1.75981103]
[1727483367481,3.2078,2694.3,2694.2,5.84288103]
[1727483367678,3.2078,2694.3,2694.2,5.47181103]
[1727483368880,3.2078,2694.3,2694.2,6.07398872]
[1727483369086,3.2078,2694.3,2694.2,7.53379959]
[1727483369270,3.2078,2694.3,2694.2,6.07398872]
[1727483369876,3.2078,2694.3,2694.2,5.70291872]
[1727483370183,3.2078,2694.3,2694.2,7.16229196]
[1727483371283,3.2078,2694.3,2694.2,6.67582179]
[1727483371480,3.2078,2694.3,2694.2,1.75960307]
[1727483372473,1.33,2694.4,2694.2,2.9636971]
[1727483372681,1.33,2694.4,2694.2,1.75960307]
[1727483372881,1.70105,2694.4,2694.2,1.75960307]
[1727483373187,1.70105,2694.4,2694.2,1.36650307]
[1727483373188,0.37106,2694.3,2694.2,1.36650307]
[1727483381983,0.0261,2694.4,2694.2,1.36650307]
[1727483382293,0.37106,2694.3,2694.2,1.36650307]
[1727483382587,0.37106,2694.3,2694.2,0.3936]
[1727483383189,0.37108,2694.1,2694.0,2.43227631]
[1727483383485,0.37108,2694.1,2693.7,1.94609654]
[1727483383486,4.90888,2694.1,2693.9,0.97290307]
[1727483383681,4.90888,2694.1,2693.8,1.82627324]
[1727483383682,0.7501,2694.0,2693.8,1.33980307]
[1727483383883,0.7501,2694.0,2693.9,0.97290307]
[1727483384282,0.7501,2694.0,2693.8,1.33980307]
[1727483392989,1.70111,2693.9,2693.7,0.97290307]
[1727483393185,1.33,2693.9,2693.7,1.36850307]
[1727483393388,1.70112,2693.9,2693.7,1.36850307]
[1727483394696,0.37112,2693.8,2693.7,1.36850307]
[1727483394996,1.70112,2693.9,2693.7,1.36850307]
[1727483395596,0.37112,2693.8,2693.7,1.36850307]
[1727483397295,1.33,2693.9,2693.7,1.36850307]
[1727483397296,1.70111,2693.9,2693.7,1.36850307]
[1727483397492,0.37112,2693.8,2693.7,1.36850307]
[1727483398498,0.37112,2693.8,2693.7,2.57225598]
[1727483398898,0.37112,2693.8,2693.7,2.57225655]
[1727483399099,0.37112,2693.8,2693.7,1.36850307]
[1727483404899,0.37112,2693.8,2693.4,0.97290307]
[1727483404900,0.37117,2693.5,2693.4,0.97290307]
[1727483405092,1.70117,2693.5,2693.4,2.54363629]
[1727483405296,1.70117,2693.5,2693.4,1.33980307]
[1727483405608,1.70117,2693.5,2693.4,0.3669]
[1727483406010,1.70117,2693.5,2693.4,1.33980307]
[1727483406395,1.70117,2693.5,2693.4,0.3669]
[1727483406603,2.06906,2693.6,2693.4,1.33980307]
[1727483406799,2.06906,2693.6,2693.5,0.377]
[1727483407407,2.06906,2693.6,2693.4,0.3669]
[1727483407408,0.37117,2693.5,2693.4,0.3669]
[1727483407704,1.70117,2693.5,2693.4,0.3669]
[1727483408702,1.33,2693.5,2693.4,0.3669]
[1727483408902,2.06905,2693.6,2693.4,0.3669]
[1727483409109,1.6979,2693.6,2693.5,0.3669]
[1727483409901,1.33,2693.6,2693.5,0.3669]
[1727483410810,1.33,2693.6,2693.4,0.3669]
[1727483411110,1.33,2693.5,2693.4,0.3669]
[1727483411504,4.66503479,2693.7,2693.4,0.3669]
[1727483411712,3.9818,2693.7,2693.5,1.33]
[1727483412008,3.9818,2693.7,2693.6,0.3701]
[1727483412207,3.9818,2693.7,2693.4,0.3669]
[1727483412208,5.68295,2693.7,2693.4,0.3669]
[1727483412415,6.07455,2693.7,2693.4,0.3669]
[1727483412613,0.3766,2693.6,2693.4,0.3669]
[1727483415510,1.33,2693.5,2693.4,0.3669]
[1727483417110,1.70117,2693.5,2693.4,0.3669]
[1727483418215,0.37118,2693.4,2693.3,0.3849]
[1727483419614,1.70118,2693.4,2693.2,0.3812]
[1727483419914,0.3802,2693.3,2693.2,0.7525]
[1727483420114,0.7467,2693.3,2693.2,0.7525]
[1727483423905,1.11789,2693.3,2693.2,0.7525]
[1727483424109,0.7467,2693.3,2693.2,0.7525]
[1727483425417,0.7467,2693.3,2693.2,1.72540307]
[1727483425915,0.7467,2693.3,2693.2,0.7525]
[1727483429208,2.57512479,2693.3,2693.2,0.7525]
[1727483429922,1.11789,2693.3,2693.2,0.7525]
[1727483431418,0.37122,2693.2,2692.9,4.18070307]
[1727483431617,1.70122,2693.2,2692.9,3.9893]
[1727483431807,3.15845479,2693.2,2692.9,3.9893]
[1727483432319,1.33,2693.0,2692.9,0.7815]
[1727483433617,1.70124,2693.0,2692.9,0.7815]
[1727483433818,1.33,2693.0,2692.9,0.7815]
[1727483436419,1.70124,2693.0,2692.9,0.7815]
[1727483439323,2.09434,2693.0,2692.9,0.7815]
[1727483441625,2.09434,2693.0,2692.4,0.97290307]
[1727483441626,6.38813479,2693.0,2692.4,0.97290307]
[1727483441923,1.33,2692.7,2692.6,1.54499]
[1727483442317,1.33,2692.7,2692.6,1.1737]
[1727483442529,1.70128,2692.7,2692.6,1.1737]
[1727483443629,4.90908,2692.7,2692.6,1.1737]
[1727483443819,8.62268,2692.7,2692.6,0.3922]
[1727483444022,0.37131,2692.5,2692.4,0.3892]
[1727483444232,1.70131,2692.5,2692.4,0.3892]
[1727483444432,1.33,2692.5,2692.4,0.3892]
[1727483445436,1.7069,2692.5,2692.4,0.3892]
[1727483446524,2.0782,2692.5,2692.4,0.3892]
[1727483447122,5.7926,2692.5,2692.3,0.3922]
[1727483447320,0.3769,2692.5,2692.3,0.3922]
[1727483447526,0.774,2692.5,2692.3,0.3922]
[1727483447825,1.1453,2692.5,2692.4,0.7591]
[1727483448031,6.1897,2692.5,2692.4,0.3858]
[1727483448827,2.104,2692.5,2692.4,0.3858]
[1727483449621,2.4753,2692.5,2692.4,0.3858]
[1727483450029,6.1897,2692.5,2692.4,0.3858]
[1727483452031,6.1897,2692.5,2692.3,0.3922]
[1727483452032,0.37132,2692.4,2692.3,0.3922]
[1727483452235,3.2078,2692.4,2692.3,0.3922]
[1727483452436,3.2078,2692.8,2692.7,0.37128]
[1727483452739,3.2078,2692.8,2692.7,1.70128]
[1727483453428,3.2078,2692.8,2692.7,5.41488]
[1727483453832,1.80123479,2693.4,2692.7,5.41488]
[1727483454037,4.5378,2693.4,2693.1,0.37121]
[1727483454243,4.5378,2693.4,2693.2,0.3929]
[1727483454442,4.5378,2693.4,2693.3,0.3686]
[1727483454639,1.33,2693.4,2693.3,0.7467]
[1727483454938,4.66503479,2693.7,2693.3,0.7467]
[1727483455241,5.25289,2694.1,2693.6,1.70115]
[1727483455441,4.90889,2694.1,2693.6,0.37115]
[1727483455843,1.33,2693.9,2693.5,1.70117]
[1727483456034,1.33,2693.9,2693.6,0.37115]
[1727483456236,1.33,2693.9,2693.5,2.67406307]
[1727483456533,1.33,2693.9,2693.6,0.37115]
[1727483456846,1.33,2693.9,2693.7,0.37114]
[1727483457038,1.33,2693.9,2693.6,0.37114]
[1727483457844,4.90889,2694.1,2693.6,0.37114]
[1727483458239,4.90889,2694.1,2693.7,0.3844]
[1727483458745,4.90889,2694.1,2693.8,0.378]
[1727483460253,1.70109,2694.1,2693.8,0.378]
[1727483460452,4.90889,2694.1,2693.8,0.378]
[1727483461051,1.33,2693.9,2693.8,0.378]
[1727483461952,1.33,2693.9,2693.4,4.18070307]
[1727483462150,1.33,2693.8,2693.4,5.33417307]
[1727483462546,1.33,2693.8,2693.5,0.37117]
[1727483462953,1.33,2693.8,2693.6,0.37115]
[1727483463357,1.33,2693.9,2693.5,0.37116]
[1727483464153,1.33,2693.9,2693.6,0.37115]
[1727483464154,2.42414952,2693.8,2693.6,0.37115]
[1727483464948,2.42414952,2693.8,2693.7,8.62094]
[1727483465254,0.23198155,2693.8,2693.7,10.5378]
[1727483465457,0.344,2694.3,2693.9,0.37111]
[1727483465458,1.93544207,2694.0,2693.9,0.37111]
[1727483465856,1.93544207,2694.0,2693.9,4.08311]
[1727483466452,1.93544207,2694.1,2693.9,4.08311]
[1727483466657,1.93544207,2694.1,2693.9,0.37111]
[1727483466860,1.93544207,2694.1,2693.7,4.5378]
[1727483467256,1.93544207,2694.1,2693.9,0.3711]
[1727483468054,2.30653207,2694.1,2693.8,0.37112]
[1727483468251,1.93544207,2694.0,2693.8,0.37112]
[1727483468560,2.71064207,2694.1,2693.8,0.37112]
[1727483469155,1.93544207,2694.0,2693.8,0.37112]
[1727483469356,2.71064207,2694.1,2693.8,0.37112]
[1727483469664,3.08173207,2694.1,2693.8,0.37112]
[1727483470161,2.71064207,2694.1,2693.7,3.2078]
[1727483470362,2.71064207,2694.1,2693.8,0.37112]
[1727483471154,0.7752,2694.1,2693.8,0.37112]
[1727483471361,1.14629,2694.1,2693.8,0.37112]
[1727483471555,1.14629,2694.1,2693.7,3.2078]
[1727483471556,0.7752,2694.1,2693.7,3.2078]
[1727483471866,1.53389,2694.1,2693.7,3.2078]
[1727483472053,1.53389,2694.1,2693.8,0.37112]
[1727483473764,1.53388,2694.1,2693.8,0.37112]
[1727483475561,1.53388,2694.1,2693.8,0.77342]
[1727483475958,1.53388,2694.1,2693.9,0.37111]
[1727483477165,0.3893,2694.1,2693.9,1.33]
[1727483477668,0.3893,2694.1,2694.0,0.3711]
[1727483478656,0.3893,2694.1,2694.0,4.0831]
[1727483479264,3.2078,2694.3,2694.2,0.37107]
[1727483479466,3.2078,2694.3,2694.2,4.08307]
[1727483479961,0.3744,2694.4,2694.3,0.37106]
[1727483480154,3.2078,2694.6,2694.5,0.37103]
[1727483480359,3.2078,2694.6,2694.5,4.08223]
[1727483481963,3.2078,2694.6,2694.4,0.37103]
[1727483482566,1.1343,2694.7,2694.4,0.37103]
[1727483484570,2.0933,2694.7,2694.2,4.5378]
[1727483484772,2.46431,2694.7,2694.3,0.37106]
[1727483485265,1.33,2694.5,2694.2,3.2078]
[1727483485477,1.33,2694.5,2694.0,0.3881]
[1727483485478,0.37106,2694.3,2694.0,0.3881]
[1727483485771,0.7569,2694.2,2694.1,0.37108]
[1727483488766,0.7569,2694.2,2694.0,0.75919]
[1727483488968,0.7569,2694.2,2694.1,0.37108]
[1727483490478,0.7569,2694.2,2694.0,0.75919]
[1727483490873,0.7569,2694.2,2694.1,0.37108]
[1727483494776,6.47324207,2694.5,2694.1,0.37108]
[1727483494777,1.93544207,2694.6,2694.5,0.37103]
[1727483494969,0.7475,2694.6,2694.5,0.37103]
[1727483495680,0.7475,2694.6,2694.5,11.41223]
[1727483495681,0.374,2694.6,2694.5,11.41223]
[1727483496069,2.34044207,2695.0,2694.9,0.37097]
[1727483496275,0.405,2695.0,2694.9,1.70097]
[1727483496470,0.405,2695.0,2694.9,5.41137]
[1727483496672,0.405,2695.0,2694.9,5.80987]
[1727483497367,0.405,2695.0,2694.9,5.4389]
[1727483497576,0.405,2695.0,2694.9,5.80987]
[1727483497977,0.3869,2695.1,2695.0,0.37096]
[1727483498483,2.32234207,2695.1,2694.9,2.09947]
[1727483499276,0.3869,2695.1,2694.9,2.09947]
[1727483499576,2.32234207,2695.1,2694.9,2.09947]
[1727483500670,2.32234207,2695.1,2694.9,1.7285]
[1727483501080,2.32234207,2695.1,2694.9,2.09947]
[1727483501473,0.3869,2695.1,2694.9,2.09947]
[1727483506282,0.3869,2695.1,2695.0,0.37096]
[1727483508080,0.3869,2695.1,2694.9,2.09947]
[1727483509687,0.3869,2695.1,2695.0,0.37096]
[1727483510278,0.3869,2695.1,2694.9,2.09947]
[1727483511079,0.3869,2695.1,2694.9,0.76947]
[1727483512891,0.3869,2695.1,2694.9,2.09947]
[1727483513280,0.3869,2695.1,2695.0,0.37096]
[1727483513690,0.3869,2695.1,2694.9,2.09946]
[1727483515482,0.75785,2695.1,2694.9,1.7285]
[1727483515881,0.75785,2695.1,2694.9,2.09947]
[1727483515882,0.3869,2695.1,2694.9,2.09947]
[1727483517882,0.3869,2695.1,2695.0,0.37096]
[1727483519482,0.3869,2695.1,2694.9,1.7285]
[1727483519483,0.3869,2695.1,2694.9,2.09947]
[1727483521486,0.3869,2695.1,2695.0,0.37096]
[1727483522503,0.3869,2695.1,2694.9,2.09946]
[1727483523190,0.75785,2695.1,2694.9,1.7285]
[1727483523585,0.37096,2695.0,2694.7,0.37099]
[1727483523983,0.37098,2694.9,2694.7,0.37099]
[1727483524184,0.3824,2694.8,2694.7,0.37099]
[1727483524386,0.7693,2694.8,2694.7,0.37099]
[1727483524579,0.7693,2694.8,2694.7,4.08219]
[1727483524797,0.7693,2694.8,2694.7,0.37099]
[1727483525394,0.7693,2694.8,2694.4,3.5886]
[1727483525395,0.37101,2694.7,2694.4,3.2078]
[1727483525596,0.3874,2694.6,2694.5,0.37102]
[1727483529699,0.3874,2694.6,2694.5,3.57882]
[1727483531800,0.7693,2694.8,2694.5,3.57882]
[1727483531801,0.3824,2694.8,2694.7,0.371]
[1727483532604,2.80180938,2694.9,2694.8,0.37099]
[1727483532793,2.80180938,2694.9,2694.8,8.61919]
[1727483532794,2.32044844,2694.9,2694.8,8.61919]
[1727483532994,1.93744844,2695.0,2694.8,14.2482]
[1727483533200,2.80130938,2695.1,2694.9,3.7104]
[1727483533507,2.80130938,2695.1,2695.0,1.70096]
[1727483534011,2.41880938,2695.1,2695.0,5.41136]
[1727483534490,2.78560938,2695.2,2695.1,0.37095]
[1727483534692,2.30455032,2695.2,2695.1,3.57875]
[1727483534893,0.84215032,2695.3,2695.2,0.37093]
[1727483535097,1.45325464,2695.3,2695.2,11.0404]
[1727483535298,2.41880938,2695.5,2695.3,0.37091]
[1727483535497,2.41880938,2695.5,2695.2,1.70092]
[1727483535696,0.3966,2695.4,2695.2,1.70092]
[1727483535895,0.3738,2695.3,2695.2,1.70092]
[1727483537896,0.3738,2695.3,2695.2,5.41132]
[1727483539398,2.41880938,2695.4,2695.3,0.37092]
[1727483539598,1.45357295,2695.5,2695.4,0.3709]
[1727483539908,1.45357295,2695.5,2695.4,1.7009]
[1727483541799,1.45357295,2695.5,2695.4,1.33]
[1727483542001,1.45357295,2695.5,2695.4,1.7009]
[1727483544503,2.21227295,2695.6,2695.5,0.37089]
[1727483545500,0.7587,2695.6,2695.5,4.08049]
[1727483546701,0.7587,2695.6,2695.5,5.05339307]
[1727483548506,0.3668,2695.7,2695.6,0.37088]
[1727483548698,0.3668,2695.7,2695.6,7.61044298]
[1727483548898,0.3668,2695.7,2695.6,6.63753991]
[1727483549203,0.3668,2695.7,2695.6,6.63745789]
[1727483549813,0.3668,2695.7,2695.6,8.09260556]
[1727483549999,0.7738,2695.9,2695.8,0.37085]
[1727483550202,0.7738,2695.9,2695.8,5.87874707]
[1727483550397,0.3996,2695.9,2695.8,5.87874707]
[1727483550721,0.344,2696.5,2696.4,0.37077]
[1727483550903,0.344,2696.5,2696.4,4.5378]
[1727483550904,0.3804,2696.5,2696.4,4.5378]
[1727483552209,0.3804,2696.5,2696.4,1.33]
[1727483555200,2.79697629,2696.5,2696.4,1.33]
[1727483555401,0.3804,2696.5,2696.4,1.33]
[1727483555613,2.79635142,2696.5,2696.4,1.33]
[1727483557002,2.41595142,2696.5,2696.4,5.0388]
[1727483557206,3.73134513,2697.1,2696.5,0.37075]
[1727483557207,1.44951295,2696.6,2696.5,0.37075]
[1727483557512,2.41595142,2696.9,2696.5,4.5378]
[1727483557513,1.44951295,2696.9,2696.5,4.5378]
[1727483557708,1.1707,2697.0,2696.9,0.3707]
[1727483558111,1.84083021,2697.0,2696.9,4.0787]
[1727483558304,0.392,2697.0,2696.9,4.0787]
[1727483559109,1.44883021,2697.2,2697.1,0.37067]
[1727483559412,1.84083021,2697.3,2697.2,0.37066]
[1727483559602,0.392,2697.3,2697.2,1.70066]
[1727483560201,3.5518,2698.0,2697.9,0.37056]
[1727483560202,0.344,2698.0,2697.9,0.37056]
[1727483560402,0.8695,2698.4,2697.9,7.26336]
[1727483560403,0.3721,2698.1,2697.9,7.26336]
[1727483560608,0.3721,2698.1,2698.0,2.89]
[1727483562610,0.3721,2698.1,2698.0,3.26055]
[1727483562910,0.3721,2698.1,2698.0,2.89]
[1727483563810,0.4,2698.2,2698.1,0.37053]
[1727483564210,0.4,2698.2,2698.1,1.16553]
[1727483564412,0.4,2698.2,2698.0,3.26054]
[1727483564611,0.4,2698.2,2698.1,1.16553]
[1727483564909,0.3792,2698.3,2698.2,0.37052]
[1727483565111,0.3792,2698.3,2698.2,3.57832]
[1727483566910,0.3993,2698.4,2698.3,0.37051]
[1727483567120,0.3993,2698.4,2698.3,3.26051]
[1727483567614,0.3939,2698.7,2698.6,0.37046]
[1727483567817,0.7997,2698.7,2698.6,2.89]
[1727483568122,0.7997,2698.7,2698.6,3.26046]
[1727483568414,0.7997,2698.7,2698.6,2.89]
[1727483570523,4.5053,2698.7,2698.5,3.2078]
[1727483570713,0.7997,2698.7,2698.5,3.2078]
[1727483571217,1.17016,2698.7,2698.5,3.2078]
[1727483571605,1.17016,2698.7,2698.4,2.89]
[1727483571809,1.17016,2698.7,2698.4,6.0978]
[1727483572713,0.37047,2698.6,2698.4,6.0978]
[1727483573218,0.7997,2698.7,2698.4,3.2078]
[1727483573416,0.7997,2698.7,2698.1,0.795]
[1727483573417,7.7131,2698.7,2698.1,0.795]
[1727483573612,0.3705,2698.4,2698.1,0.795]
[1727483573815,0.92618,2698.6,2698.0,2.89]
[1727483574115,4.0075,2698.7,2698.0,2.89]
[1727483574315,4.0075,2698.7,2698.0,6.0978]
[1727483574520,4.0075,2698.7,2698.0,6.46834]
[1727483574521,0.3705,2698.4,2698.0,6.46834]
[1727483574714,0.37051,2698.3,2698.0,6.0978]
[1727483575030,0.76812,2698.2,2698.0,6.0978]
[1727483575222,0.399,2698.1,2698.0,6.0978]
[1727483575615,0.399,2698.1,2698.0,3.2078]
[1727483575920,4.1054,2698.1,2697.7,3.2078]
[1727483576125,3.57838,2697.8,2697.3,3.26063]
[1727483576512,0.37059,2697.7,2697.3,2.89]
[1727483577024,3.57838,2697.8,2697.3,2.89]
[1727483577522,3.2078,2697.8,2697.3,2.89]
[1727483578019,0.3706,2697.6,2697.3,2.89]
[1727483578715,0.37059,2697.7,2697.3,2.89]
[1727483579216,1.188,2697.6,2697.3,2.89]
[1727483581517,1.5586,2697.6,2697.3,2.89]
[1727483581711,1.188,2697.6,2697.3,2.89]
[1727483581913,1.188,2697.6,2697.1,0.372]
[1727483581914,0.7856,2697.6,2697.5,3.26062]
[1727483582218,3.2078,2697.8,2697.5,2.89]
[1727483582531,3.2078,2697.8,2697.5,3.26062]
[1727483583020,0.3866,2698.1,2697.7,3.26058]
[1727483583620,0.3866,2698.1,2697.8,0.37057]
[1727483583828,0.3866,2698.1,2697.7,2.89]
[1727483584123,0.3866,2698.1,2697.8,0.37056]
[1727483585618,0.3866,2698.1,2697.7,3.2774]
[1727483585818,0.3866,2698.1,2697.8,0.37057]
[1727483586229,0.3866,2698.1,2697.9,0.37056]
[1727483586524,3.2078,2698.2,2697.9,0.37056]
[1727483586719,3.2078,2698.2,2697.8,0.37057]
[1727483587325,3.57832,2698.2,2697.7,3.64798]
[1727483588221,3.57832,2698.2,2697.3,3.6071]
[1727483588222,3.2078,2698.2,2697.5,2.89]
[1727483588519,0.0261,2697.8,2697.5,0.37061]
[1727483588921,0.0261,2697.8,2697.3,2.89]
[1727483589130,0.8032,2697.7,2697.3,3.26064]
[1727483589628,0.8032,2697.7,2697.4,0.37063]
[1727483591433,0.8032,2697.7,2697.3,2.89]
[1727483591434,3.57841,2697.6,2697.3,2.89]
[1727483591820,3.2078,2697.6,2697.3,3.26064]
[1727483592325,3.2078,2697.6,2697.3,2.89]